bitfinex/quotes_SOLUSD_20241029
["timestamp","ask_amount","ask_price","bid_price","bid_amount"]
[1730174106644,13.94461723,181.48,181.44,8.43421723]
[1730174107270,14.54970783,181.5,181.45,10.64117866]
[1730174107474,14.54970783,181.5,181.45,8.43421723]
[1730174107850,6.1154906,181.5,181.44,27.72421723]
[1730174108050,8.43421723,181.49,181.45,2.20687119]
[1730174108272,8.43421723,181.49,181.44,27.72421723]
[1730174108273,13.94431723,181.49,181.44,27.72421723]
[1730174108456,13.94431723,181.49,181.45,2.20685055]
[1730174108766,13.94431723,181.49,181.44,27.72421723]
[1730174108963,13.94431723,181.49,181.45,2.20685027]
[1730174109274,13.94431723,181.49,181.44,8.43421723]
[1730174109477,8.43421723,181.48,181.43,8.43421723]
[1730174109655,8.43421723,181.48,181.44,2.20696946]
[1730174109856,13.94431723,181.49,181.44,8.43421723]
[1730174110378,13.94431723,181.49,181.45,8.43421723]
[1730174112475,13.94431723,181.49,181.44,8.43421723]
[1730174112655,13.94431723,181.49,181.45,2.20686781]
[1730174112861,13.94431723,181.49,181.44,8.43421723]
[1730174113173,13.94431723,181.49,181.45,2.20687504]
[1730174113366,13.94431723,181.49,181.44,8.43421723]
[1730174113680,13.94431723,181.49,181.45,2.20687922]
[1730174113974,13.94431723,181.49,181.44,8.43421723]
[1730174114177,13.94431723,181.49,181.45,2.20688266]
[1730174114388,13.94431723,181.49,181.44,8.43421723]
[1730174114673,13.94431723,181.49,181.45,2.20689244]
[1730174114867,13.94431723,181.49,181.45,8.43421723]
[1730174115762,5.5101,181.49,181.45,8.43421723]
[1730174116159,5.5101,181.49,181.46,2.20689023]
[1730174116367,5.5101,181.49,181.45,8.43421723]
[1730174116558,5.5101,181.49,181.43,5.5117]
[1730174116559,5.5101,181.49,181.46,10.64110746]
[1730174116880,5.5101,181.49,181.47,8.43421723]
[1730174117557,0.6055906,181.5,181.47,8.43421723]
[1730174117882,0.6055906,181.5,181.48,8.43421723]
[1730174118670,6.1151906,181.5,181.46,8.43421723]
[1730174118874,6.1151906,181.5,181.47,2.20669746]
[1730174119075,6.1151906,181.5,181.46,8.43421723]
[1730174119460,6.1151906,181.5,181.47,2.20671617]
[1730174119955,6.1151906,181.5,181.47,10.6409334]
[1730174120157,6.1151906,181.5,181.48,10.64092404]
[1730174120386,0.6055906,181.5,181.48,8.43421723]
[1730174121183,0.6055906,181.5,181.49,2.206669]
[1730174122876,0.6055906,181.5,181.49,10.64088623]
[1730174124989,5.7484027,181.59,181.49,62.50507023]
[1730174125157,5.7484027,181.59,181.58,8.43421723]
[1730174125482,5.5066,181.6,181.58,8.43421723]
[1730174125680,5.5066,181.6,181.59,8.43421723]
[1730174126373,30.0503,181.63,181.59,8.43421723]
[1730174126575,5.506,181.62,181.6,8.43421723]
[1730174126767,5.506,181.62,181.61,8.43421723]
[1730174127659,6.6317,181.64,181.61,8.43421723]
[1730174127660,5.5047,181.66,181.61,8.43421723]
[1730174127856,5.5047,181.66,181.64,8.43421723]
[1730174128067,5.5047,181.66,181.63,8.43421723]
[1730174128271,13.93891723,181.66,181.57,2.20535028]
[1730174128470,13.93891723,181.66,181.61,8.43421723]
[1730174128667,5.5047,181.66,181.62,8.43421723]
[1730174131193,5.5047,181.66,181.63,8.43421723]
[1730174132275,5.5047,181.66,181.62,8.43421723]
[1730174132971,5.5047,181.66,181.63,8.43421723]
[1730174133177,5.5047,181.66,181.64,8.43421723]
[1730174134177,5.5044,181.67,181.65,8.43421723]
[1730174134382,0.6055906,181.68,181.66,8.43421723]
[1730174134690,6.1097906,181.68,181.6,19.273]
[1730174134881,6.1097906,181.68,181.65,8.43421723]
[1730174135474,6.1097906,181.68,181.66,8.43421723]
[1730174135888,6.1097906,181.68,181.65,8.43421723]
[1730174137993,0.6055906,181.68,181.66,8.43421723]
[1730174138171,0.6055906,181.68,181.65,8.43421723]
[1730174139070,0.6055906,181.68,181.57,2.2049763]
[1730174139071,8.43421723,181.67,181.57,2.2049763]
[1730174139275,8.43421723,181.66,181.61,8.43421723]
[1730174140294,8.43421723,181.65,181.6,8.43421723]
[1730174140971,8.43421723,181.64,181.59,8.43421723]
[1730174142678,13.93981723,181.64,181.59,8.43421723]
[1730174143079,13.93981723,181.64,181.58,8.43421723]
[1730174143080,8.43421723,181.63,181.58,8.43421723]
[1730174145787,13.94011723,181.63,181.58,8.43421723]
[1730174145986,8.43421723,181.62,181.57,8.43421723]
[1730174146783,13.94031723,181.62,181.57,8.43421723]
[1730174147201,8.43421723,181.61,181.56,13.7695]
[1730174147504,8.43421723,181.61,181.56,22.20371723]
[1730174148080,8.43421723,181.61,181.56,8.43421723]
[1730174148283,8.43421723,181.59,181.53,27.71441723]
[1730174148692,13.94131723,181.59,181.53,27.71441723]
[1730174148893,8.43421723,181.58,181.53,27.71441723]
[1730174149722,13.94141723,181.58,181.51,16.5976]
[1730174149881,8.43421723,181.54,181.5,2.20570208]
[1730174150086,8.43421723,181.54,181.49,24.41401931]
[1730174150294,8.43421723,181.54,181.49,22.20831723]
[1730174150591,8.43421723,181.54,181.49,24.41401931]
[1730174150790,8.43421723,181.54,181.49,22.20831723]
[1730174150999,8.43421723,181.54,181.49,29.92382178]
[1730174151295,8.43421723,181.54,181.49,27.71791723]
[1730174152206,8.43421723,181.55,181.5,8.43421723]
[1730174152613,5.5066,181.6,181.54,8.43421723]
[1730174152790,8.43421723,181.59,181.54,8.43421723]
[1730174153294,8.43421723,181.55,181.5,22.20831723]
[1730174153494,8.43421723,181.54,181.5,22.20831723]
[1730174154907,13.94231723,181.55,181.5,22.20831723]
[1730174155905,8.43421723,181.54,181.5,13.7741]
[1730174156215,13.94231723,181.55,181.5,27.71791723]
[1730174157792,8.43421723,181.55,181.5,27.71791723]
[1730174158502,13.94201723,181.56,181.51,8.43421723]
[1730174158703,13.94201723,181.56,181.5,19.2837]
[1730174158704,8.43421723,181.55,181.5,27.71791723]
[1730174160294,19.2731,181.6,181.5,27.71791723]
[1730174160494,8.43421723,181.56,181.51,8.43421723]
[1730174161411,8.43421723,181.55,181.51,5.5091]
[1730174162717,8.43421723,181.55,181.5,19.2837]
[1730174163114,8.43421723,181.53,181.47,2.7573148]
[1730174163418,8.43421723,181.52,181.48,5.5099]
[1730174163836,8.43421723,181.5,181.47,2.20590433]
[1730174164000,8.43421723,181.48,181.46,2.20619795]
[1730174164200,8.43421723,181.47,181.44,13.7786]
[1730174164522,8.43421723,181.46,181.44,13.7786]
[1730174164722,0.1,181.57,181.44,13.7786]
[1730174164723,13.7671,181.6,181.46,0.1]
[1730174164901,13.7671,181.6,181.51,8.43421723]
[1730174165102,8.43421723,181.57,181.51,8.43421723]
[1730174165296,8.43421723,181.56,181.51,8.43421723]
[1730174165801,13.94201723,181.56,181.51,8.43421723]
[1730174166196,5.5078,181.56,181.51,8.43421723]
[1730174166626,5.5078,181.56,181.51,13.94351723]
[1730174167422,13.7671,181.6,181.51,13.94351723]
[1730174167603,8.43421723,181.57,181.52,8.43421723]
[1730174169323,8.43421723,181.58,181.53,8.43421723]
[1730174169623,13.94161723,181.58,181.53,8.43421723]
[1730174171816,8.43421723,181.57,181.52,8.43421723]
[1730174172400,29.42975727,181.62,181.53,8.43421723]
[1730174172605,8.43421723,181.58,181.53,8.43421723]
[1730174173400,13.94161723,181.58,181.53,8.43421723]
[1730174173806,8.43421723,181.57,181.52,13.94301723]
[1730174174208,13.94161723,181.58,181.53,8.43421723]
[1730174175110,8.43421723,181.57,181.52,8.43421723]
[1730174175305,8.43421723,181.56,181.51,8.43421723]
[1730174175505,8.43421723,181.56,181.52,2.20582824]
[1730174175718,8.43421723,181.56,181.51,8.43421723]
[1730174175903,8.43421723,181.56,181.52,2.20585064]
[1730174176106,13.94201723,181.56,181.51,8.43421723]
[1730174176307,8.43421723,181.53,181.52,2.20585091]
[1730174176505,8.43421723,181.53,181.49,19.2847]
[1730174176803,8.43421723,181.53,181.5,2.2059611]
[1730174177007,8.43421723,181.53,181.51,2.2059611]
[1730174177206,8.43421723,181.52,181.48,2.75745084]
[1730174177436,8.43421723,181.52,181.49,2.20615289]
[1730174177613,8.43421723,181.52,181.5,2.20615289]
[1730174177920,8.43421723,181.52,181.48,2.75769284]
[1730174178122,8.43421723,181.52,181.49,2.20619677]
[1730174178325,8.43421723,181.52,181.5,2.20619677]
[1730174178525,5.74109463,181.6,181.51,72.33917015]
[1730174178716,22.2805,181.66,181.51,72.33917015]
[1730174178717,5.5059,181.63,181.59,8.43421723]
[1730174180004,8.43421723,181.62,181.57,8.43421723]
[1730174180523,5.5059,181.63,181.58,13.11528708]
[1730174180524,18.62118708,181.63,181.58,13.11528708]
[1730174181122,18.62118708,181.63,181.54,13.7703]
[1730174181123,5.5059,181.63,181.59,13.11528708]
[1730174181521,5.5059,181.63,181.6,13.11528708]
[1730174182217,5.5053,181.64,181.6,13.11528708]
[1730174182532,18.62058708,181.64,181.59,13.11528708]
[1730174184419,5.5053,181.64,181.6,13.11528708]
[1730174184921,5.5053,181.64,181.61,13.11528708]
[1730174185629,22.2805,181.66,181.61,13.11528708]
[1730174185830,5.505,181.65,181.61,13.11528708]
[1730174188135,5.5047,181.66,181.61,13.11528708]
[1730174188431,5.5047,181.66,181.62,13.11528708]
[1730174189535,5.5047,181.66,181.61,18.62148708]
[1730174191739,6.1099906,181.68,181.64,13.11528708]
[1730174192135,0.6055906,181.68,181.63,13.11528708]
[1730174192439,19.22497768,181.68,181.63,13.11528708]
[1730174193234,19.22497768,181.68,181.57,2.46407975]
[1730174193235,13.11528708,181.64,181.57,2.26407975]
[1730174193410,13.11528708,181.61,181.58,2.20503468]
[1730174193610,18.62128708,181.62,181.57,13.11528708]
[1730174194026,18.62128708,181.62,181.58,2.20522929]
[1730174194225,18.62128708,181.62,181.57,13.11528708]
[1730174194433,18.62128708,181.62,181.58,2.2052503]
[1730174194615,18.62128708,181.62,181.57,13.11528708]
[1730174194816,18.62128708,181.62,181.58,2.20525057]
[1730174195016,18.62128708,181.62,181.57,13.11528708]
[1730174195215,18.62128708,181.62,181.58,2.20525964]
[1730174195433,13.11528708,181.64,181.59,13.11528708]
[1730174195942,13.11528708,181.65,181.6,13.11528708]
[1730174196317,13.11528708,181.64,181.59,13.11528708]
[1730174196518,5.5056,181.63,181.59,13.11528708]
[1730174197317,18.62088708,181.63,181.58,13.11528708]
[1730174198117,18.62088708,181.63,181.59,2.20523457]
[1730174198338,18.62088708,181.63,181.58,13.11528708]
[1730174198537,18.62088708,181.63,181.59,2.2052172]
[1730174198743,18.62088708,181.63,181.58,13.11528708]
[1730174198942,18.62088708,181.63,181.59,2.20521721]
[1730174199124,18.62088708,181.63,181.58,13.11528708]
[1730174199835,18.62088708,181.63,181.59,2.20520925]
[1730174200124,13.11528708,181.64,181.58,13.11528708]
[1730174200342,13.11528708,181.64,181.59,2.20520383]
[1730174200545,8.39313694,181.64,181.58,8.39313694]
[1730174200722,8.39313694,181.64,181.59,10.59836486]
[1730174200923,8.39313694,181.64,181.59,8.39313694]
[1730174201639,5.5056,181.63,181.59,8.39313694]
[1730174201848,13.89873694,181.63,181.56,19.2773]
[1730174202151,13.89873694,181.63,181.58,8.39313694]
[1730174202821,5.5056,181.63,181.59,8.39313694]
[1730174204043,8.39313694,181.65,181.59,8.39313694]
[1730174205128,5.5053,181.64,181.59,8.39313694]
[1730174206449,8.39313694,181.64,181.59,8.39313694]
[1730174207456,8.39313694,181.65,181.59,8.39313694]
[1730174207952,5.5056,181.63,181.59,8.39313694]
[1730174210751,5.5056,181.63,181.6,8.39313694]
[1730174212049,8.39313694,181.66,181.6,8.39313694]
[1730174212262,5.505,181.65,181.6,8.39313694]
[1730174212943,13.89813694,181.65,181.6,8.39313694]
[1730174213136,8.39313694,181.64,181.59,8.39313694]
[1730174213334,8.39313694,181.62,181.57,2.75660099]
[1730174213537,8.39313694,181.61,181.58,2.20530572]
[1730174213760,8.39313694,181.61,181.56,22.16263694]
[1730174213965,8.39313694,181.61,181.57,2.20530228]
[1730174214132,8.39313694,181.61,181.58,2.20530228]
[1730174214334,8.39313694,181.61,181.56,8.39313694]
[1730174214659,8.39313694,181.61,181.57,2.20530747]
[1730174214841,8.39313694,181.62,181.58,2.20530747]
[1730174215044,8.39313694,181.62,181.57,8.39313694]
[1730174215045,5.5063,181.61,181.57,8.39313694]
[1730174215250,5.5063,181.61,181.58,2.2053224]
[1730174215448,5.5063,181.61,181.57,8.39313694]
[1730174215754,5.5063,181.61,181.58,2.20531706]
[1730174215938,5.5063,181.61,181.57,8.39313694]
[1730174216134,5.5063,181.61,181.58,2.20531706]
[1730174216438,5.5063,181.61,181.57,8.39313694]
[1730174216638,5.5063,181.61,181.58,2.20531485]
[1730174216847,5.5063,181.61,181.57,8.39313694]
[1730174217055,5.5063,181.61,181.58,2.20531513]
[1730174217247,5.5063,181.61,181.57,8.39313694]
[1730174217449,5.5063,181.61,181.58,2.20531335]
[1730174217651,5.5063,181.61,181.57,8.39313694]
[1730174217843,5.5063,181.61,181.58,2.20531362]
[1730174218043,5.5063,181.61,181.57,8.39313694]
[1730174218250,5.5063,181.61,181.58,2.20530606]
[1730174218446,5.5063,181.61,181.58,8.39313694]
[1730174218654,5.506,181.62,181.58,8.39313694]
[1730174220758,8.39313694,181.64,181.59,8.39313694]
[1730174221265,8.39313694,181.63,181.58,8.39313694]
[1730174222359,5.506,181.62,181.58,8.39313694]
[1730174223740,5.506,181.62,181.57,8.39313694]
[1730174224446,5.506,181.62,181.58,2.20545995]
[1730174224764,5.506,181.62,181.57,8.39313694]
[1730174224962,5.506,181.62,181.58,2.20545995]
[1730174225169,5.506,181.62,181.57,8.39313694]
[1730174225370,5.506,181.62,181.58,2.20545968]
[1730174225572,5.506,181.62,181.57,8.39313694]
[1730174225863,8.39313694,181.63,181.58,10.59859689]
[1730174226162,8.39313694,181.63,181.58,8.39313694]
[1730174226551,8.39313694,181.63,181.57,8.39313694]
[1730174226744,8.39313694,181.63,181.58,2.20545531]
[1730174226946,5.506,181.62,181.57,8.39313694]
[1730174227245,5.506,181.62,181.58,2.20545586]
[1730174227446,5.506,181.62,181.57,8.39313694]
[1730174227642,13.89913694,181.62,181.58,2.20545968]
[1730174227964,13.89913694,181.62,181.57,8.39313694]
[1730174228156,13.89913694,181.62,181.58,2.20544488]
[1730174228364,13.89913694,181.62,181.59,2.20544488]
[1730174228552,13.89913694,181.62,181.57,8.39313694]
[1730174228865,13.89913694,181.62,181.58,2.20544306]
[1730174229064,13.89913694,181.62,181.59,2.20544306]
[1730174229252,13.89913694,181.62,181.57,8.39313694]
[1730174229453,13.89913694,181.62,181.58,2.20545759]
[1730174229761,13.89913694,181.62,181.59,2.20545759]
[1730174229950,13.89913694,181.62,181.57,8.39313694]
[1730174230157,13.89913694,181.62,181.58,2.20545995]
[1730174230453,13.89913694,181.62,181.59,2.20545995]
[1730174230645,13.89913694,181.62,181.57,8.39313694]
[1730174230844,13.89913694,181.62,181.58,2.20545088]
[1730174231039,13.89913694,181.62,181.59,2.20545088]
[1730174231240,13.89913694,181.62,181.55,2.2639043]
[1730174231447,8.39313694,181.6,181.56,4.96228612]
[1730174231753,8.39313694,181.61,181.56,8.39313694]
[1730174231941,8.39313694,181.61,181.57,4.96231727]
[1730174232143,27.66413694,181.62,181.58,2.20547434]
[1730174232366,27.66413694,181.62,181.59,2.20549152]
[1730174232547,27.66413694,181.62,181.56,8.39313694]
[1730174232747,27.66413694,181.62,181.57,4.96235876]
[1730174232967,27.66413694,181.62,181.58,2.20549278]
[1730174233154,27.66413694,181.62,181.59,2.20549278]
[1730174233350,5.5053,181.64,181.61,8.39313694]
[1730174233753,5.5053,181.64,181.62,8.39313694]
[1730174234346,30.47803694,181.67,181.62,8.39313694]
[1730174234546,5.5047,181.66,181.62,8.39313694]
[1730174234869,5.5047,181.66,181.63,2.20496089]
[1730174235070,5.5047,181.66,181.63,8.39313694]
[1730174235249,6.93675176,181.71,181.65,8.39313694]
[1730174235445,8.39313694,181.76,181.67,8.39313694]
[1730174235671,8.39313694,181.74,181.67,10.59771889]
[1730174235866,5.503,181.72,181.67,10.59771889]
[1730174236070,8.39313694,181.74,181.67,2.20443669]
[1730174236252,29.6976,181.77,181.67,10.59757363]
[1730174236456,5.5032,181.72,181.67,10.59757363]
[1730174239568,5.5032,181.72,181.67,10.5974637]
[1730174240169,8.39313694,181.75,181.67,10.5974637]
[1730174240467,8.39313694,181.75,181.61,0.2]
[1730174240468,8.39313694,181.71,181.6,0.1]
[1730174240670,6.1096906,181.68,181.65,8.39313694]
[1730174240877,14.50282754,181.68,181.61,13.7657]
[1730174241175,6.1096906,181.68,181.64,8.39313694]
[1730174241965,14.50282754,181.68,181.61,13.7657]
[1730174242158,14.50282754,181.68,181.63,8.39313694]
[1730174243177,6.1096906,181.68,181.64,2.2046758]
[1730174243362,6.1096906,181.68,181.64,8.39313694]
[1730174246782,6.1096906,181.68,181.67,8.39313694]
[1730174246783,0.6055906,181.68,181.67,8.39313694]
[1730174247282,0.6055906,181.68,181.66,8.39313694]
[1730174247457,0.6055906,181.68,181.67,10.59729643]
[1730174248861,0.6055906,181.68,181.67,16.10169643]
[1730174249359,0.6055906,181.68,181.67,16.10166008]
[1730174252777,0.6055906,181.68,181.67,7.70852314]
[1730174253380,0.6055906,181.68,181.67,5.5044]
[1730174253687,0.6055906,181.68,181.67,8.39313694]
[1730174254979,0.6055906,181.68,181.67,13.89753694]
[1730174256759,0.6055906,181.68,181.67,5.5044]
[1730174259578,0.6055906,181.68,181.67,8.39313694]
[1730174260693,0.6055906,181.68,181.67,13.89753694]
[1730174261492,0.6055906,181.68,181.67,5.5044]
[1730174263385,0.6055906,181.68,181.67,8.39313694]
[1730174264390,0.6055906,181.68,181.67,13.89753694]
[1730174267087,0.6055906,181.68,181.66,13.7616]
[1730174267290,0.6055906,181.68,181.67,8.39313694]
[1730174268197,0.6055906,181.68,181.67,13.89753694]
[1730174268797,0.6055906,181.68,181.66,19.2663]
[1730174268986,0.6055906,181.68,181.66,27.65943694]
[1730174269499,0.6055906,181.68,181.66,19.2663]
[1730174269686,0.6055906,181.68,181.66,27.65943694]
[1730174270980,0.6055906,181.68,181.67,8.39313694]
[1730174272607,0.6055906,181.68,181.66,27.65923694]
[1730174275195,0.6055906,181.68,181.67,32.17002094]
[1730174275588,0.6055906,181.68,181.67,34.37386631]
[1730174276423,0.6055906,181.68,181.67,32.17002094]
[1730174276602,0.6055906,181.68,181.67,34.37391118]
[1730174277284,0.6055906,181.68,181.67,39.87831118]
[1730174277485,0.6055906,181.68,181.67,40.07831118]
[1730174277810,0.6055906,181.68,181.67,42.83302816]
[1730174278104,0.6055906,181.68,181.67,34.43989122]
[1730174278308,0.6055906,181.68,181.67,39.97831118]
[1730174278803,0.6055906,181.68,181.67,31.58517424]
[1730174278984,0.6055906,181.68,181.67,39.97831118]
[1730174279701,0.6055906,181.68,181.67,39.87831118]
[1730174279904,0.6055906,181.68,181.67,39.97831118]
[1730174280087,0.6055906,181.68,181.67,37.77442094]
[1730174280289,0.6055906,181.68,181.67,7.70822937]
[1730174280499,0.6055906,181.68,181.67,13.89753694]
[1730174282204,0.6055906,181.68,181.67,16.10151472]
[1730174282999,0.6055906,181.68,181.67,16.10145334]
[1730174283589,0.6055906,181.68,181.67,39.87833734]
[1730174286503,0.6055906,181.68,181.67,39.8783222]
[1730174287203,0.6055906,181.68,181.67,42.63317366]
[1730174290315,0.6055906,181.68,181.67,42.63282429]
[1730174291092,0.6055906,181.68,181.67,44.88794681]
[1730174291308,0.6055906,181.68,181.67,42.63282429]
[1730174291513,0.6055906,181.68,181.67,44.88858283]
[1730174292310,0.6055906,181.68,181.67,44.88991787]
[1730174292709,0.6055906,181.68,181.67,42.63282429]
[1730174293799,0.6055906,181.68,181.67,42.63275991]
[1730174294615,0.6055906,181.68,181.67,42.73275991]
[1730174294795,0.6055906,181.68,181.67,42.63275991]
[1730174294999,0.6055906,181.68,181.67,42.73275991]
[1730174295310,0.6055906,181.68,181.67,42.63275991]
[1730174295898,0.6055906,181.68,181.67,34.23962297]
[1730174296216,0.6055906,181.68,181.67,42.63275991]
[1730174297721,0.6055906,181.68,181.67,10.46284032]
[1730174297889,0.6055906,181.68,181.67,21.11646211]
[1730174298793,6.6650906,181.68,181.67,4.95844032]
[1730174298999,6.6650906,181.68,181.67,13.35157726]
[1730174299807,0.6055906,181.68,181.67,13.35157726]
[1730174300210,0.6055906,181.68,181.67,18.85597726]
[1730174300924,0.6055906,181.68,181.67,16.10128819]
[1730174301301,0.6055906,181.68,181.67,2.20375125]
[1730174301593,0.6055906,181.68,181.67,10.59688819]
[1730174302706,0.6055906,181.68,181.67,2.20375125]
[1730174302899,0.6055906,181.68,181.67,10.59688819]
[1730174303102,0.6055906,181.68,181.67,8.39313694]
[1730174303296,6.1096906,181.68,181.67,2.20421405]
[1730174303518,22.4484906,181.68,181.67,2.20421405]
[1730174305206,22.4484906,181.68,181.67,2.20431038]
[1730174305407,22.4484906,181.68,181.65,8.39313694]
[1730174305703,22.4484906,181.68,181.66,2.2043129]
[1730174306026,30.84162754,181.68,181.62,2.2600994]
[1730174306321,8.39313694,181.66,181.63,4.95995398]
[1730174306522,6.1003,181.65,181.64,4.95995398]
[1730174306830,6.1003,181.65,181.64,2.20442399]
[1730174307825,22.4484906,181.68,181.64,10.59756093]
[1730174308123,22.4484906,181.68,181.66,8.39313694]
[1730174309025,23.776884,181.66,181.63,2.75574159]
[1730174309199,14.49343694,181.64,181.58,2.2600994]
[1730174309400,14.49343694,181.64,181.59,4.96120558]
[1730174309623,14.49343694,181.64,181.6,2.20497896]
[1730174309807,14.49343694,181.64,181.58,8.39313694]
[1730174310004,8.39313694,181.63,181.59,2.20505533]
[1730174310195,6.1003,181.64,181.58,8.39313694]
[1730174310406,5.506,181.62,181.59,2.2051035]
[1730174310726,5.506,181.62,181.58,8.39313694]
[1730174310912,5.506,181.62,181.59,2.20510378]
[1730174311112,5.506,181.62,181.57,8.39313694]
[1730174311314,5.506,181.62,181.58,2.20510378]
[1730174311517,5.506,181.62,181.59,2.20510378]
[1730174311715,6.1097906,181.68,181.61,8.39313694]
[1730174312011,0.6055906,181.68,181.67,8.39313694]
[1730174312419,0.6055906,181.68,181.66,8.39313694]
[1730174315124,6.1096906,181.68,181.62,2.75556348]
[1730174315429,6.1096906,181.68,181.63,10.59762508]
[1730174315628,14.50282754,181.68,181.64,2.20446842]
[1730174315933,14.50282754,181.68,181.63,8.39313694]
[1730174317614,6.1096906,181.68,181.64,8.39313694]
[1730174318825,0.6055906,181.68,181.67,8.39313694]
[1730174321535,0.6055906,181.68,181.66,8.39313694]
[1730174324327,0.6055906,181.68,181.62,13.765]
[1730174324512,6.1097906,181.68,181.65,8.39313694]
[1730174330135,6.1097906,181.68,181.66,8.39313694]
[1730174331629,0.6055906,181.68,181.67,8.39313694]
[1730174333330,0.6055906,181.68,181.67,13.89753694]
[1730174334441,0.6055906,181.68,181.67,16.10158013]
[1730174335439,0.6055906,181.68,181.67,13.89753694]
[1730174335744,0.6055906,181.68,181.67,16.10161646]
[1730174337437,15.6975,181.76,181.68,23.776884]
[1730174337649,15.6975,181.76,181.75,8.39313694]
[1730174338738,5.5011,181.78,181.75,8.39313694]
[1730174339834,5.501,181.79,181.77,8.39313694]
[1730174340038,5.501,181.79,181.78,8.39313694]
[1730174340226,16.5952,181.8,181.78,8.39313694]
[1730174340227,22.0958,181.8,181.78,8.39313694]
[1730174341613,6.46,181.83,181.79,8.39313694]
[1730174341823,6.46,181.83,181.8,8.39313694]
[1730174342539,11.9596,181.83,181.8,8.39313694]
[1730174346640,20.35273694,181.83,181.71,33.57254776]
[1730174346826,8.39313694,181.82,181.77,8.39313694]
[1730174347033,6.89313694,181.81,181.76,8.39313694]
[1730174347438,8.39313694,181.8,181.75,8.39313694]
[1730174347641,8.39313694,181.81,181.76,8.39313694]
[1730174348228,5.5005,181.8,181.77,8.39313694]
[1730174349444,5.5002,181.81,181.77,8.39313694]
[1730174349821,5.5002,181.81,181.78,8.39313694]
[1730174351054,28.60223694,181.83,181.78,8.39313694]
[1730174351247,5.4999,181.82,181.78,8.39313694]
[1730174351427,13.89303694,181.82,181.77,8.39313694]
[1730174353444,5.4999,181.82,181.78,8.39313694]
[1730174354437,5.4999,181.82,181.79,8.39313694]
[1730174355530,5.4999,181.82,181.78,8.39313694]
[1730174358849,13.89303694,181.82,181.78,8.39313694]
[1730174359942,13.89303694,181.82,181.77,8.39313694]
[1730174360145,13.89303694,181.82,181.74,19.2582]
[1730174360330,13.89303694,181.82,181.77,8.39313694]
[1730174360923,8.39313694,181.8,181.7,15.1841]
[1730174361155,8.39313694,181.8,181.75,8.39313694]
[1730174361332,8.39313694,181.81,181.76,8.39313694]
[1730174362044,5.5005,181.8,181.76,8.39313694]
[1730174364354,8.39313694,181.79,181.71,13.7581]
[1730174364550,8.39313694,181.78,181.73,8.39313694]
[1730174364743,8.39313694,181.79,181.74,8.39313694]
[1730174365644,5.5011,181.78,181.74,8.39313694]
[1730174367035,5.5011,181.78,181.75,8.39313694]
[1730174367866,25.5002,181.81,181.76,8.39313694]
[1730174368045,33.89333694,181.81,181.76,8.39313694]
[1730174369335,8.39313694,181.8,181.75,8.39313694]
[1730174370762,8.39313694,181.8,181.76,8.39313694]
[1730174370763,5.5005,181.8,181.76,8.39313694]
[1730174372373,5.74442322,181.83,181.8,16.2338]
[1730174372661,5.4985,181.87,181.82,8.39313694]
[1730174372967,5.4985,181.87,181.85,8.39313694]
[1730174373262,5.498,181.89,181.85,8.39313694]
[1730174373462,5.4982,181.88,181.85,8.39313694]
[1730174374041,5.4984,181.87,181.85,8.39313694]
[1730174375651,20.53639681,181.93,181.84,8.39313694]
[1730174375652,6.1042906,181.86,181.84,8.39313694]
[1730174377668,6.1042906,181.86,181.85,8.39313694]
[1730174378068,14.49742754,181.86,181.76,27.4016]
[1730174378365,14.49742754,181.86,181.81,8.39313694]
[1730174378550,14.49742754,181.86,181.76,41.156]
[1730174378745,14.49742754,181.86,181.81,8.39313694]
[1730174378960,8.39313694,181.85,181.8,8.39313694]
[1730174379163,14.49742754,181.86,181.81,8.39313694]
[1730174380248,14.49742754,181.86,181.77,5.5013]
[1730174380458,14.49742754,181.86,181.81,8.39313694]
[1730174381146,6.1042906,181.86,181.81,8.39313694]
[1730174381446,14.49742754,181.86,181.81,8.39313694]
[1730174387370,6.1042906,181.86,181.82,8.39313694]
[1730174387751,13.89243694,181.84,181.76,29.3997]
[1730174387957,13.89243694,181.84,181.79,8.39313694]
[1730174388376,13.89243694,181.84,181.8,8.39313694]
[1730174389189,13.89243694,181.84,181.76,29.3997]
[1730174389352,13.89243694,181.84,181.8,8.39313694]
[1730174390374,5.4993,181.84,181.81,8.39313694]
[1730174391164,5.4993,181.84,181.8,8.39313694]
[1730174392862,8.39313694,181.84,181.8,8.39313694]
[1730174393857,5.4996,181.83,181.8,8.39313694]
[1730174394053,5.4996,181.83,181.77,2.20276769]
[1730174394378,5.4996,181.83,181.79,8.39313694]
[1730174395378,13.89213694,181.85,181.8,8.39313694]
[1730174395577,5.499,181.85,181.8,8.39313694]
[1730174395771,13.89213694,181.85,181.8,8.39313694]
[1730174396875,0.6055906,181.86,181.84,8.39313694]
[1730174397183,0.6055906,181.86,181.85,8.39313694]
[1730174398464,6.1042906,181.86,181.85,8.39313694]
[1730174398856,0.6055906,181.86,181.85,8.39313694]